bitfinex/quotes_ETHUSD_20251125
["timestamp","ask_amount","ask_price","bid_price","bid_amount"]
[1764030755804,0.002,2939.7,2939.5,1.13109811]
[1764030756004,0.002,2939.7,2939.6,0.621504]
[1764030756439,0.4921,2939.7,2939.6,0.216]
[1764030756626,0.9482,2939.7,2939.5,0.94159411]
[1764030756813,0.002,2939.7,2939.5,0.94159411]
[1764030757019,0.002,2939.7,2939.6,0.405504]
[1764030757437,0.002,2939.7,2939.6,4.53292148]
[1764030757945,0.002,2939.7,2939.6,4.62592148]
[1764030759548,0.002,2940.0,2939.8,0.405504]
[1764030759751,0.002,2940.0,2939.9,0.309]
[1764030759920,0.002,2940.0,2939.8,0.405504]
[1764030760455,0.002,2940.0,2939.9,0.498504]
[1764030761517,1e-08,2940.4,2940.2,0.81859411]
[1764030761712,1e-08,2940.4,2940.2,1.03459411]
[1764030762054,1e-08,2940.4,2940.2,1.13109811]
[1764030762258,1e-08,2940.4,2940.2,1.34709811]
[1764030762815,1e-08,2940.4,2940.2,1.44009811]
[1764030764032,1e-08,2940.4,2940.2,4.84122728]
[1764030764428,1e-08,2940.4,2940.2,4.53222728]
[1764030764634,0.4921,2940.3,2940.2,4.53222728]
[1764030764860,0.4921,2940.3,2940.2,4.74822728]
[1764030765158,0.002,2940.3,2940.2,4.74822728]
[1764030765460,0.002,2940.3,2940.2,4.78223857]
[1764030766256,0.002,2940.3,2940.2,4.74822728]
[1764030767360,0.9482,2940.3,2940.2,4.74822728]
[1764030767529,0.9482,2940.3,2940.2,4.34272328]
[1764030767721,0.002,2940.3,2940.2,4.74822728]
[1764030768021,0.002,2940.3,2940.2,4.84122728]
[1764030768746,0.002,2940.3,2940.2,4.87523857]
[1764030769433,0.002,2940.3,2940.2,4.84122728]
[1764030769615,0.002,2940.3,2940.2,4.74822728]
[1764030770017,0.4879,2940.3,2940.2,4.74822728]
[1764030770217,0.9667,2940.3,2940.2,4.74822728]
[1764030770633,0.002,2940.3,2940.2,4.87523857]
[1764030771367,1e-08,2940.7,2940.6,0.405504]
[1764030771528,1e-08,2940.7,2940.6,0.74851066]
[1764030772954,1e-08,2940.7,2940.6,4.84076464]
[1764030773549,0.48590001,2940.7,2940.6,4.53176464]
[1764030773749,0.96470001,2940.7,2940.6,4.53176464]
[1764030773948,0.48590001,2940.7,2940.6,4.74776464]
[1764030774152,1e-08,2940.7,2940.6,4.74776464]
[1764030774840,0.49640001,2940.7,2940.6,4.12626064]
[1764030775168,0.98160001,2940.7,2940.6,4.34226064]
[1764030775372,1e-08,2940.7,2940.6,4.74776464]
[1764030775777,1e-08,2940.7,2940.6,4.84076464]
[1764030775960,0.49640001,2940.7,2940.6,4.53176464]
[1764030776145,0.98160001,2940.7,2940.6,4.74776464]
[1764030776345,0.98160001,2940.7,2940.6,4.53176464]
[1764030776547,0.98160001,2940.7,2940.6,4.34226064]
[1764030777275,0.49640001,2940.7,2940.6,4.34226064]
[1764030777770,0.98160001,2940.7,2940.6,4.34226064]
[1764030779869,0.98160001,2940.7,2940.6,4.12626064]
[1764030780079,0.98160001,2940.7,2940.6,4.34226064]
[1764030781664,0.98160001,2940.7,2940.6,4.12626064]
[1764030782287,0.98160001,2940.7,2940.6,3.40066653]
[1764030782546,0.98160001,2940.7,2940.6,2.90066653]
[1764030783479,0.98160001,2940.7,2940.5,3.40177622]
[1764030783480,0.98160001,2940.7,2940.5,0.001]
[1764030783687,0.9419,2940.6,2940.5,0.001]
[1764030788655,0.4567,2940.6,2940.5,0.001]
[1764030788859,1e-08,2940.7,2940.5,0.217]
[1764030789155,1e-08,2940.7,2940.5,0.25100782]
[1764030789356,1e-08,2940.7,2940.5,0.217]
[1764030790293,1e-08,2940.7,2940.6,3.40066653]
[1764030790479,1e-08,2940.7,2940.6,4.12626064]
[1764030790789,1e-08,2940.7,2940.6,4.46416064]
[1764030791657,1e-08,2940.7,2940.6,4.4981673]
[1764030792272,1e-08,2940.7,2940.6,4.9036713]
[1764030792481,1e-08,2940.7,2940.6,5.30056464]
[1764030792679,1e-08,2940.7,2940.6,5.3345713]
[1764030792870,1e-08,2940.7,2940.6,4.9966713]
[1764030793588,1e-08,2940.7,2940.6,5.3345713]
[1764030794791,0.002,2941.3,2941.1,1.005404]
[1764030794792,1e-08,2941.2,2941.1,1.005404]
[1764030794992,1e-08,2941.2,2941.1,1.221404]
[1764030796091,1e-08,2941.2,2941.1,1.005404]
[1764030796279,1e-08,2941.2,2941.1,1.221404]
[1764030796884,1e-08,2941.2,2941.1,5.68498651]
[1764030797887,1e-08,2941.2,2941.1,5.34708651]
[1764030798198,1e-08,2941.2,2941.1,5.68498651]
[1764030798496,1e-08,2941.2,2941.1,5.34708651]
[1764030798668,1e-08,2941.2,2941.1,5.68498651]
[1764030799278,1e-08,2941.2,2941.1,5.82120471]
[1764030799768,1e-08,2941.2,2941.1,5.48330471]
[1764030799968,1e-08,2941.2,2941.1,5.85520559]
[1764030800664,1e-08,2941.2,2941.1,5.82120471]
[1764030800867,1e-08,2941.2,2941.1,5.85520559]
[1764030802074,1e-08,2941.2,2941.1,9.71520559]
[1764030802277,1e-08,2941.2,2941.1,9.34330471]
[1764030802468,1e-08,2941.2,2941.1,8.52740471]
[1764030802667,1e-08,2941.2,2941.1,3.4000884]
[1764030802668,0.92780001,2941.2,2941.1,3.4000884]
[1764030803178,0.92780001,2941.2,2941.1,4.12568251]
[1764030803766,0.92780001,2941.2,2941.1,3.4000884]
[1764030805626,0.92780001,2941.2,2940.9,0.72559411]
[1764030805798,0.4562,2941.1,2940.9,0.72559411]
[1764030805991,0.4716,2941.0,2940.9,0.72559411]
[1764030806493,0.4716,2941.0,2940.9,0.94159411]
[1764030806689,0.9278,2941.0,2940.9,0.94159411]
[1764030806908,0.8278,2941.0,2940.9,0.94159411]
[1764030807409,0.3716,2941.0,2940.9,0.94159411]
[1764030807595,0.3716,2941.0,2940.9,4.34191374]
[1764030809334,0.8278,2941.0,2940.9,4.34191374]
[1764030809499,0.8278,2941.0,2940.9,4.12591374]
[1764030809826,0.8278,2941.0,2940.9,3.40031963]
[1764030811838,0.8278,2941.0,2940.8,6.80084077]
[1764030812036,0.3716,2941.0,2940.8,6.80084077]
[1764030812213,0.3716,2941.0,2940.9,0.001]
[1764030813435,0.45620001,2941.2,2940.9,0.001]
[1764030814413,0.4716,2941.0,2940.9,0.001]
[1764030815439,0.45620001,2941.2,2940.9,0.001]
[1764030815643,0.45620001,2941.2,2941.0,0.216]
[1764030816246,0.4716,2941.1,2941.0,0.216]
[1764030816418,0.4716,2941.1,2940.9,0.001]
[1764030816626,0.7553,2941.0,2940.9,0.001]
[1764030816943,0.7553,2941.0,2940.9,0.217]
[1764030818245,0.7553,2941.0,2940.9,3.61731963]
[1764030818432,0.7553,2941.0,2940.9,3.40131963]
[1764030822134,0.7553,2941.0,2940.9,0.001]
[1764030825273,0.2991,2941.0,2940.9,0.001]
[1764030825478,1e-08,2941.2,2940.9,0.001]
[1764030825674,0.4716,2941.0,2940.9,0.001]
[1764030826672,1e-08,2941.2,2940.9,0.001]
[1764030826974,0.4716,2941.0,2940.9,0.001]
[1764030829367,0.002,2941.1,2940.9,0.001]
[1764030829572,0.002,2941.1,2940.9,0.4389]
[1764030829947,0.4963,2941.0,2940.9,0.001]
[1764030830569,0.002,2941.1,2941.0,0.405504]
[1764030830773,0.002,2941.1,2941.0,0.936404]
[1764030830972,0.002,2941.1,2941.0,0.843404]
[1764030831442,0.002,2941.1,2941.0,4.96920212]
[1764030831972,0.002,2941.1,2941.0,5.00320416]
[1764030832172,0.002,2941.1,2941.0,5.44110416]
[1764030832678,0.002,2941.1,2941.0,5.53410416]
[1764030834150,0.002,2941.1,2941.0,5.09620416]
[1764030834356,0.4983,2941.1,2941.0,4.74730212]
[1764030834877,0.4983,2941.1,2941.0,4.53130212]
[1764030835282,0.4983,2941.1,2941.0,4.74730212]
[1764030835687,0.4983,2941.1,2941.0,4.34179812]
[1764030835878,0.9784,2941.1,2941.0,4.34179812]
[1764030836279,0.9784,2941.1,2941.0,4.12579812]
[1764030836462,0.9784,2941.1,2941.0,4.34179812]
[1764030836967,0.002,2941.1,2941.0,4.77969812]
[1764030837170,0.002,2941.1,2941.0,4.81370016]
[1764030837367,0.002,2941.1,2941.0,5.21920416]
[1764030837591,0.002,2941.1,2941.0,5.62310212]
[1764030837772,0.002,2941.1,2941.0,5.65710416]
[1764030838175,0.002,2941.1,2941.0,5.75010416]
[1764030838576,0.002,2941.1,2941.0,5.71610212]
[1764030839083,0.002,2941.1,2941.0,5.27820212]
[1764030839283,0.002,2941.1,2941.0,5.31220416]
[1764030839596,0.002,2941.1,2941.0,5.27820212]
[1764030839808,0.4855,2941.1,2941.0,4.12579812]
[1764030840010,0.002,2941.1,2941.0,4.34179812]
[1764030840190,0.002,2941.1,2941.0,5.21920416]
[1764030840567,0.002,2941.1,2941.0,5.75010416]
[1764030840886,0.002,2941.3,2941.1,2.26889811]
[1764030841089,0.002,2941.3,2941.2,0.843404]
[1764030841998,0.4855,2941.3,2941.2,0.216]
[1764030842308,0.9656,2941.3,2941.2,0.216]
[1764030843002,0.4855,2941.3,2941.2,4.34156691]
[1764030843302,0.002,2941.3,2941.2,4.77946691]
[1764030843506,0.002,2941.3,2941.2,5.18497091]
[1764030843710,0.002,2941.3,2941.2,5.62287091]
[1764030844029,0.002,2941.6,2941.3,1.13109811]
[1764030844182,0.002,2941.6,2941.4,1.31530141]
[1764030844719,1e-08,2941.6,2941.4,1.31530141]
[1764030844900,1e-08,2941.6,2941.5,5.40652415]
[1764030845205,1e-08,2941.6,2941.5,5.49952415]
[1764030845405,0.1933,2942.2,2941.7,0.843404]
[1764030845697,0.1933,2942.2,2941.8,0.216]
[1764030846272,0.4801,2942.4,2941.8,0.309]
[1764030846468,0.4801,2942.4,2942.0,0.4379]
[1764030846694,0.1869,2942.5,2942.0,0.843404]
[1764030846999,0.1869,2942.5,2942.0,4.96804637]
[1764030847302,10.15,2943.6,2942.1,0.405504]
[1764030847607,0.6734,2943.0,2942.4,0.4379]
[1764030847903,0.6734,2943.0,2942.5,0.405504]
[1764030848101,0.4801,2943.2,2942.7,0.405504]
[1764030848815,0.4801,2943.2,2942.7,0.498504]
[1764030848982,0.4801,2943.5,2942.9,0.72559411]
[1764030849170,0.4801,2943.5,2943.0,0.216]
[1764030849577,0.4835,2943.1,2943.0,0.216]
[1764030850176,0.1978,2944.1,2943.0,0.216]
[1764030850420,0.4801,2943.5,2943.0,0.216]
[1764030851008,0.4801,2943.5,2943.1,10.19333355]
[1764030852439,0.1978,2944.1,2943.1,10.19333355]
[1764030852440,0.1978,2944.1,2943.5,0.405504]
[1764030852615,0.4821,2944.3,2943.7,0.405504]
[1764030852809,0.002,2944.3,2943.7,0.405504]
[1764030853008,0.002,2944.3,2944.0,6.79347826]
[1764030853208,0.002,2944.3,2944.1,0.216]
[1764030853406,0.4801,2944.2,2944.0,6.79347826]
[1764030853604,0.4835,2944.1,2944.0,3.39673913]
[1764030853839,0.4835,2944.1,2944.0,3.61273913]
[1764030854066,0.9636,2944.1,2944.0,3.61273913]
[1764030854456,0.4835,2944.1,2944.0,3.61273913]
[1764030854620,0.002,2944.3,2944.0,7.00947826]
[1764030854811,0.002,2944.3,2944.0,7.44737826]
[1764030855533,0.002,2944.3,2944.1,0.72559411]
[1764030856229,0.002,2944.3,2944.2,0.405504]
[1764030856642,0.4801,2944.7,2944.2,0.843404]
[1764030857147,0.1869,2945.1,2944.5,0.72559411]
[1764030857329,0.4801,2945.0,2944.5,0.72559411]
[1764030857929,0.1869,2945.3,2944.7,0.405504]
[1764030858647,0.1869,2945.3,2944.8,0.4801]
[1764030859117,0.4835,2944.9,2944.8,4.60151046]
[1764030859317,0.4801,2945.2,2944.9,0.72559411]
[1764030859517,0.4801,2945.2,2945.0,0.216]
[1764030859949,0.4547,2945.1,2945.0,0.216]
[1764030860330,0.9337,2945.1,2944.9,0.72559411]
[1764030860658,0.8989,2945.0,2944.9,0.72559411]
[1764030860831,0.8989,2945.0,2944.9,0.94159411]
[1764030861032,0.8989,2945.0,2944.9,1.84049411]
[1764030861233,0.8989,2945.0,2944.9,4.29460104]
[1764030864167,0.8989,2945.0,2944.9,0.8989]
[1764030864464,0.8989,2945.0,2944.7,3.395921]
[1764030864666,0.6479,2944.8,2944.7,3.395921]
[1764030865136,1.1269,2944.8,2944.7,3.395921]
[1764030865344,1.1269,2944.8,2944.7,1.02076056]
[1764030865549,1.1269,2944.8,2944.5,3.39607316]
[1764030865750,0.4202,2944.6,2944.5,3.39607316]
[1764030866147,0.8992,2944.6,2944.5,3.39607316]
[1764030866450,0.4202,2944.6,2944.5,3.87507316]
[1764030867065,0.1936,2944.8,2944.5,7.27123549]
[1764030867977,0.481,2945.0,2944.5,10.66739782]
[1764030868172,0.002,2945.0,2944.5,10.66739782]
[1764030868485,0.002,2945.0,2944.5,10.76039782]
[1764030868687,0.481,2945.0,2944.5,10.66739782]
[1764030870408,0.002,2945.0,2944.5,10.66739782]
[1764030870700,0.002,2945.0,2944.9,0.4379]
[1764030870901,0.002,2945.0,2944.9,1.059404]
[1764030871267,0.002,2945.0,2944.9,1.590304]
[1764030871592,0.002,2945.0,2944.9,1.059404]
[1764030871758,0.002,2945.0,2944.9,4.52679915]
[1764030871958,0.9357,2945.0,2944.9,4.33729515]
[1764030872168,0.002,2945.0,2944.9,4.96469915]
[1764030872392,0.002,2945.0,2944.9,5.71159915]
[1764030873194,0.002,2945.6,2945.1,0.405504]
[1764030873407,0.13603475,2947.9,2945.6,0.405504]
[1764030873571,0.4547,2945.7,2945.3,0.405504]
[1764030873906,0.479,2946.1,2945.5,1.13109811]
[1764030874212,0.479,2946.4,2945.7,0.405504]
[1764030874372,0.479,2946.4,2945.8,0.216]
[1764030874802,0.94159411,2947.6,2945.8,0.216]
[1764030875002,0.479,2946.8,2945.9,0.498504]
[1764030875208,0.479,2946.8,2945.9,0.714504]
[1764030875500,0.479,2946.8,2946.0,0.216]
[1764030875701,0.479,2946.8,2946.3,1.13109811]
[1764030875891,0.479,2947.1,2946.4,0.216]
[1764030876080,0.479,2947.6,2946.5,0.405504]
[1764030876281,0.1936,2948.0,2947.5,0.5896]
[1764030876493,0.1936,2948.0,2946.5,0.4379]
[1764030876494,0.479,2947.9,2947.6,0.216]
[1764030876802,0.4547,2947.7,2947.3,0.405504]
[1764030876970,0.4547,2947.7,2947.4,0.216]
[1764030877476,0.4547,2947.7,2947.5,0.216]
[1764030877683,0.9337,2947.7,2947.6,3.39259058]
[1764030878000,0.6726,2948.0,2947.7,0.72559411]
[1764030878309,0.479,2948.2,2947.7,0.72559411]
[1764030879192,0.6483,2947.8,2947.7,0.72559411]
[1764030879391,0.6483,2947.8,2947.7,0.94159411]
[1764030879608,1.0773,2947.8,2947.7,0.94159411]
[1764030879774,1.0773,2947.8,2947.7,4.33406959]
[1764030880904,0.479,2948.1,2947.7,11.11902055]
[1764030881703,0.479,2948.1,2947.8,0.479]
[1764030881891,0.479,2948.1,2947.9,3.39224532]
[1764030882296,0.4547,2948.0,2947.9,3.39224532]
[1764030882684,0.9337,2948.0,2947.8,0.479]
[1764030882885,0.4947,2947.9,2947.8,3.8713604]
[1764030883084,0.9737,2947.9,2947.8,0.479]
[1764030883274,0.9737,2947.9,2947.8,3.8713604]
[1764030884411,0.9737,2947.9,2947.8,0.479]
[1764030884713,0.9737,2947.9,2947.8,3.8713604]
[1764030884899,0.002,2948.1,2947.8,7.2637208]
[1764030885104,0.002,2948.1,2948.0,0.4693]
[1764030885288,0.002,2948.1,2947.9,0.72559411]
[1764030885615,0.002,2948.1,2948.0,0.215]
[1764030885912,0.002,2948.1,2948.0,3.60713025]
[1764030886215,0.9357,2948.1,2948.0,3.39213025]
[1764030887920,0.9357,2948.1,2947.9,3.39224532]
[1764030888223,0.7801,2948.0,2947.9,3.39224532]
[1764030889932,0.7801,2948.0,2947.8,0.479]
[1764030889933,0.7801,2948.0,2947.8,3.87132883]
[1764030890090,1.1083,2947.9,2947.8,3.87132883]
[1764030891125,0.6434,2947.9,2947.8,3.87132883]
[1764030891301,1.1083,2947.9,2947.8,3.87132883]
[1764030893022,0.6434,2947.9,2947.8,3.87132883]
[1764030893523,1.1083,2947.9,2947.8,3.87132883]
[1764030894810,0.6434,2947.9,2947.8,3.87132883]
[1764030895550,1.1212,2947.9,2947.8,3.87132883]
[1764030897262,0.002,2948.1,2947.8,7.71658923]
[1764030897420,0.6554,2947.9,2947.8,4.59692294]
[1764030897620,1.1332,2947.9,2947.8,3.87132883]
[1764030898355,0.002,2948.1,2947.8,3.87132883]
[1764030898356,0.002,2948.1,2947.8,7.26368923]
[1764030898535,0.4778,2948.0,2947.8,7.26368923]
[1764030898736,0.6554,2947.9,2947.8,3.87132883]
[1764030899123,1.1332,2947.9,2947.8,3.87132883]
[1764030900327,1.1332,2947.9,2947.8,0.479]
[1764030900535,1.1332,2947.9,2947.0,0.72559411]
[1764030900735,0.4778,2947.8,2947.0,0.215]
[1764030900935,0.4569,2947.1,2947.0,0.215]
[1764030901135,0.4778,2947.8,2947.0,0.215]
[1764030901360,0.4778,2947.7,2947.0,0.215]
[1764030901566,0.4569,2947.1,2947.0,0.215]
[1764030901942,0.4569,2947.1,2946.9,7.80667551]
[1764030901943,0.9347,2947.1,2946.9,7.80667551]
[1764030902131,0.2952,2947.0,2946.9,4.41327906]
[1764030902461,0.773,2947.0,2946.9,4.41327906]
[1764030902651,0.4778,2947.3,2946.9,7.80667551]
[1764030902848,0.93092321,2947.8,2946.9,11.20007196]
[1764030903055,0.4778,2947.7,2946.9,11.20007196]
[1764030903439,0.1985,2947.9,2946.9,11.20007196]
[1764030903642,0.4778,2947.8,2946.9,14.59346841]
[1764030904045,0.4778,2947.8,2947.5,0.001]
[1764030904263,0.4778,2947.8,2947.5,3.39370568]
[1764030904451,0.4569,2947.6,2947.5,3.39370568]
[1764030904851,0.9347,2947.6,2947.5,3.39370568]
[1764030906156,0.2005,2947.9,2947.5,3.39370568]
[1764030906157,0.6783,2947.9,2947.5,6.78641136]
[1764030906474,0.6783,2947.9,2947.5,0.001]
[1764030906767,0.4778,2947.8,2947.5,0.001]
[1764030907344,0.002,2947.9,2947.5,0.216]
[1764030907550,0.002,2947.9,2947.7,0.4529]
[1764030907959,0.002,2947.9,2947.5,0.001]
[1764030908170,0.6783,2947.9,2947.8,0.215]
[1764030908368,0.6783,2947.9,2947.8,3.6073604]
[1764030908676,3.39115498,2948.9,2947.8,6.7847208]
[1764030908847,0.1853,2947.9,2947.8,3.3923604]
[1764030909549,0.1853,2947.9,2947.6,3.39252508]
[1764030909772,0.71966732,2948.6,2947.6,6.78511566]
[1764030909957,0.1853,2947.7,2947.6,3.39252508]
[1764030910361,0.1853,2947.7,2947.5,0.001]
[1764030910589,0.1118,2947.6,2947.5,0.001]
[1764030910898,0.57739302,2948.3,2947.5,0.001]
[1764030911070,0.1853,2948.3,2947.5,0.001]
[1764030911278,0.1118,2947.6,2947.5,0.001]
[1764030911678,0.2963,2947.6,2947.5,0.001]
[1764030912276,0.405504,2948.3,2947.5,0.001]
[1764030912473,0.63758382,2948.2,2947.5,0.001]
[1764030912680,0.1853,2948.2,2947.5,0.001]
[1764030912863,0.215,2948.5,2947.5,0.001]
[1764030913085,0.1853,2948.4,2947.5,0.001]
[1764030913289,0.49948049,2948.4,2947.5,0.001]
[1764030913486,0.1853,2948.4,2947.5,0.001]
[1764030913703,0.1853,2948.3,2947.5,0.001]
[1764030914007,0.56448758,2948.3,2947.5,0.001]
[1764030914365,0.1853,2948.3,2947.5,0.001]
[1764030914565,0.215,2948.5,2947.5,0.001]
[1764030914803,0.1853,2948.2,2947.5,0.001]
[1764030915608,0.4003,2948.5,2947.6,0.4503]
[1764030915911,0.215,2948.5,2947.6,0.4503]
[1764030916117,0.1853,2948.7,2947.7,0.215]
[1764030916269,1.84631399,2949.0,2947.7,0.215]
[1764030916471,0.1853,2948.9,2947.9,10.17673596]
[1764030916670,1.66101399,2949.0,2948.0,0.4503]
[1764030916671,0.1846314,2948.8,2948.0,0.4503]
[1764030916969,0.215,2949.0,2948.1,0.215]
[1764030916970,0.1853,2948.9,2948.1,0.215]
[1764030917294,0.1118,2948.2,2948.0,0.72559411]
[1764030917493,0.0011,2948.1,2948.0,0.72559411]
[1764030917689,0.1853,2948.8,2948.0,0.72559411]
[1764030917890,0.1853,2948.8,2947.9,6.78449064]
[1764030917891,0.1118,2948.1,2947.9,6.78449064]
[1764030918095,0.1118,2948.1,2947.5,0.72659411]
[1764030918096,0.0018,2948.0,2947.5,0.72659411]
[1764030918406,0.31426851,2948.7,2947.5,6.78641136]
[1764030918604,3.39144,2948.6,2947.5,0.001]
[1764030918783,0.37057085,2948.5,2947.5,0.001]
[1764030918981,0.1118,2947.6,2947.5,0.001]
[1764030919373,0.1853,2948.1,2947.5,0.001]
[1764030919699,0.1118,2947.6,2947.5,0.001]
[1764030921192,0.72559411,2948.2,2947.5,0.001]
[1764030921399,0.41174562,2948.1,2947.5,0.001]
[1764030921707,0.1853,2948.2,2947.5,0.001]
[1764030922110,0.215,2948.4,2947.5,0.001]
[1764030922405,0.215,2948.4,2947.6,0.4665]
[1764030922606,0.002,2948.0,2947.7,6.99995096]
[1764030923014,0.002,2948.0,2947.9,0.4576]
[1764030923385,0.002,2948.0,2947.7,6.78495096]
[1764030923708,0.002,2948.0,2947.7,6.99995096]
[1764030924610,0.002,2948.0,2947.7,6.78495096]
[1764030924985,0.002,2948.0,2947.9,0.4576]
[1764030925176,0.002,2948.0,2947.9,0.9241]
[1764030926609,0.002,2948.0,2947.9,4.31634532]
[1764030927017,0.002,2948.0,2947.9,4.53134532]
[1764030927314,0.117,2948.9,2947.9,11.31583596]
[1764030927688,0.117,2948.9,2948.0,0.4665]
[1764030928110,0.3789,2949.1,2948.1,0.399]
[1764030928325,0.1853,2949.0,2947.9,10.64323596]
[1764030928482,0.37698486,2948.9,2948.1,6.78403038]
[1764030928815,0.1936,2949.1,2948.1,13.56806076]
[1764030928978,0.1936,2949.1,2948.2,0.4665]
[1764030930335,0.405504,2949.7,2948.2,0.4665]
[1764030930336,3.58345029,2950.0,2948.3,0.215]
[1764030930641,3.58345029,2950.0,2948.5,10.17466506]
[1764030930642,0.1853,2949.5,2948.5,10.17466506]
[1764030931139,0.1853,2949.5,2948.6,0.215]
[1764030931811,0.1853,2949.5,2948.6,0.6815]
[1764030932345,0.1853,2949.8,2948.6,0.4665]
[1764030932506,0.1853,2949.8,2948.7,0.4665]
[1764030932709,0.1936,2950.0,2948.9,0.72559411]
[1764030932931,0.3789,2950.0,2948.9,1.19209411]
[1764030933220,0.3789,2950.0,2949.0,0.215]
[1764030933429,0.1853,2949.9,2949.0,0.215]
[1764030933610,0.1853,2949.9,2949.1,0.215]
[1764030934343,0.1853,2949.9,2949.1,0.399]
[1764030935041,0.1853,2949.9,2949.2,6.78150006]
[1764030935232,0.1936,2950.0,2949.2,10.17225009]
[1764030936010,0.1936,2950.0,2949.2,10.63875009]
[1764030936232,0.3789,2950.0,2949.2,10.17225009]
[1764030936432,0.3789,2950.0,2949.2,6.78150006]
[1764030936623,0.1853,2949.9,2949.2,6.78150006]
[1764030936847,0.1936,2950.0,2949.2,10.63875009]
[1764030937050,0.3789,2950.0,2949.2,10.63875009]
[1764030937355,0.3789,2950.0,2949.2,6.78150006]
[1764030937562,0.1853,2949.9,2949.2,6.78150006]
[1764030938722,0.1853,2949.9,2949.1,0.215]
[1764030938723,3.57524542,2949.9,2949.1,0.215]
[1764030939225,0.37688454,2949.8,2948.9,0.4665]
[1764030939422,0.1853,2949.0,2948.5,0.4665]
[1764030939655,0.1853,2949.0,2948.4,0.4665]
[1764030939833,0.1853,2949.0,2948.2,0.72559411]
[1764030940022,0.3706,2949.0,2948.2,0.4665]
[1764030940228,0.3706,2949.0,2948.0,0.184]
[1764030940429,0.1853,2948.9,2948.0,0.399]
[1764030940723,0.1853,2948.9,2947.7,0.4665]
[1764030941134,6.78241996,2948.8,2948.0,0.001]
[1764030941341,0.1853,2948.1,2948.0,0.001]
[1764030941528,0.882072,2948.7,2948.0,0.001]
[1764030941931,0.696772,2948.7,2948.1,0.184]
[1764030942130,3.39120998,2948.8,2948.1,0.184]
[1764030942429,6.78241996,2948.8,2948.1,0.6505]
[1764030942648,0.1853,2948.2,2948.0,0.001]
[1764030942957,0.1695,2948.1,2948.0,0.001]
[1764030943458,3.39158909,2948.5,2948.0,0.4586]
[1764030943659,6.78317818,2948.5,2948.0,0.9251]
[1764030943835,7.19016129,2948.5,2948.0,0.4586]
[1764030944158,3.39155502,2948.5,2948.0,0.4586]
[1764030944697,6.96847755,2948.5,2948.0,0.001]
[1764030945489,6.78317755,2948.5,2948.0,0.001]
[1764030946498,3.39155502,2948.5,2948.0,0.4675]
[1764030946801,3.39155502,2948.5,2948.1,0.184]
[1764030947017,0.72559411,2948.9,2948.1,0.184]
[1764030947304,6.78241996,2948.8,2948.1,0.184]
[1764030947661,6.96771996,2948.8,2948.1,0.184]
[1764030947868,6.96771996,2948.8,2948.0,0.001]
[1764030948093,0.882072,2948.7,2948.0,0.001]
[1764030948401,0.1853,2948.1,2948.0,0.001]
[1764030949005,0.1853,2948.6,2948.0,0.001]
[1764030949502,0.1853,2948.1,2948.0,0.001]
[1764030950106,6.99811004,2948.5,2948.0,0.001]
[1764030950264,0.718341,2948.4,2948.0,0.001]
[1764030951107,0.718341,2948.4,2948.0,0.4887]
[1764030951307,3.39178509,2948.3,2948.0,0.001]
[1764030952833,6.78357018,2948.3,2948.0,0.001]
[1764030953012,4.16347621,2948.3,2948.0,0.001]
[1764030953807,0.215,2948.5,2948.2,0.4768]
[1764030954027,3.39145493,2948.6,2948.4,0.4768]
[1764030954208,3.39136595,2948.7,2948.5,0.4768]
[1764030954616,3.39124868,2948.8,2948.5,0.4768]
[1764030955033,0.1853,2948.6,2948.0,0.001]
[1764030955333,0.1851,2948.1,2948.0,0.001]
[1764030955839,3.39191092,2948.2,2948.0,0.001]
[1764030956701,3.39183541,2948.3,2948.0,0.001]
[1764030956907,4.07017754,2948.3,2948.0,0.001]
[1764030957107,4.09096649,2948.8,2948.2,0.4786]
[1764030957108,3.39132499,2948.7,2948.2,0.4786]
[1764030957503,3.39132499,2948.7,2948.1,0.1998]
[1764030957504,6.78264998,2948.7,2948.1,0.1998]
[1764030957808,0.1853,2948.3,2948.0,0.001]
[1764030959235,0.1853,2948.6,2948.0,0.001]
[1764030959454,0.76676851,2948.6,2948.1,0.1998]
[1764030959657,0.002,2948.3,2948.1,0.6914]
[1764030959842,0.002,2948.3,2948.0,0.001]
[1764030961254,0.1853,2948.1,2948.0,0.001]
[1764030961565,0.002,2948.3,2948.0,0.001]
[1764030961769,0.002,2948.3,2948.2,0.4786]
[1764030963074,3.39378509,2948.3,2948.0,0.4926]
[1764030963269,0.002,2948.3,2948.0,0.4926]
[1764030964265,0.002,2948.3,2948.2,0.4786]
[1764030964469,0.002,2948.3,2948.2,0.9702]
[1764030964764,0.002,2948.3,2948.2,1.1852]
[1764030965069,0.002,2948.3,2948.2,0.4786]
[1764030965435,0.002,2948.3,2948.2,0.9702]
[1764030965678,0.002,2948.3,2948.2,4.57710014]
[1764030968693,0.002,2948.3,2948.2,5.74211725]
[1764030969256,0.002,2948.3,2948.2,5.80119825]
[1764030970262,0.002,2948.3,2948.2,5.83511725]
[1764030970470,0.215,2949.8,2948.2,5.83511725]
[1764030970471,0.215,2949.8,2948.2,15.91781767]
[1764030970727,6.78012881,2949.8,2948.4,0.405504]
[1764030971193,7.5685911,2949.8,2948.5,0.4916]
[1764030971394,7.5685911,2949.8,2948.6,0.215]
[1764030971762,4.17852263,2949.8,2948.7,0.4916]
[1764030972299,0.1853,2950.4,2949.8,3.39006034]
[1764030972502,0.1853,2950.4,2949.8,6.78012068]
[1764030972661,0.1853,2950.4,2949.7,0.6914]
[1764030972864,0.1853,2949.8,2949.1,0.1998]